fUSD/lending_fUSD_20240212
["ID","MTS","AMOUNT","RATE_DAILY","PERIOD"]
[313833207,1707748271475,-935.54,0.00023944,2]
[313833208,1707748271485,-500.0,0.00023944,2]
[313833209,1707748271495,-7934.79,0.00023944,2]
[313833210,1707748271506,-500.0,0.00023944,2]
[313833211,1707748271515,-500.0,0.00023944,2]
[313833212,1707748271525,-500.0,0.00023944,2]
[313833213,1707748271535,-500.0,0.00023944,2]
[313833214,1707748271544,-500.0,0.00023944,2]
[313833215,1707748271555,-314.84114083,0.00023944,2]
[313833216,1707748271565,-500.0,0.00023944,2]
[313833217,1707748271574,-2190.55,0.00023944,2]
[313833218,1707748271583,-500.0,0.00023944,2]
[313833219,1707748271592,-1376.25,0.00023944,2]
[313833220,1707748271602,-500.0,0.00023944,2]
[313833221,1707748271611,-6405.5,0.00023944,2]
[313833222,1707748271621,-500.0,0.00023944,2]
[313833223,1707748271630,-500.0,0.00023944,2]
[313833224,1707748271639,-500.0,0.00023944,2]
[313833225,1707748271650,-4161.56,0.00023944,2]
[313833226,1707748271659,-692.19,0.00023944,2]
[313833227,1707748271668,-500.0,0.00023944,2]
[313833228,1707748271678,-562.21,0.00023944,2]
[313833229,1707748271687,-500.0,0.00023944,2]
[313833230,1707748271697,-500.0,0.00023985,2]
[313833231,1707748271708,-517.78567072,0.00024,2]
[313833232,1707748271717,-44649.5,0.00024,2]
[313833233,1707748271727,-500.0,0.00024025,2]
[313833234,1707748271736,-344.13726848,0.00024025,2]
[313833235,1707748271745,-500.0,0.00024025,2]
[313833236,1707748271756,-500.0,0.00024025,2]
[313833237,1707748271765,-329.67621766,0.00024025,2]
[313833238,1707748271775,-500.0,0.00024025,2]
[313833239,1707748271784,-500.0,0.00024025,2]
[313833240,1707748271794,-500.0,0.00024025,2]
[313833241,1707748271803,-500.0,0.00024025,2]
[313833242,1707748271813,-1262.54,0.00024025,2]
[313833243,1707748271823,-500.0,0.00024025,2]
[313833244,1707748271833,-1207.47,0.00024025,2]
[313833245,1707748271843,-500.0,0.00024025,2]
[313833246,1707748271853,-500.0,0.00024025,2]
[313833247,1707748271862,-500.0,0.00024025,2]
[313833248,1707748271872,-500.0,0.00024025,2]
[313833249,1707748271881,-500.0,0.00024025,2]
[313833250,1707748271890,-581.28,0.00024025,2]
[313833251,1707748271899,-500.0,0.00024025,2]
[313833252,1707748271908,-500.0,0.00024025,2]
[313833253,1707748271918,-500.0,0.00024025,2]
[313833254,1707748271927,-500.0,0.00024025,2]
[313833255,1707748271936,-500.0,0.00024025,2]
[313833256,1707748271945,-500.0,0.00024025,2]
[313833257,1707748271955,-500.0,0.00024025,2]
[313833258,1707748271964,-500.0,0.00024025,2]
[313833259,1707748271973,-500.0,0.00024025,2]
[313833260,1707748271983,-500.0,0.00024025,2]
[313833261,1707748271992,-500.0,0.00024025,2]
[313833262,1707748272002,-500.0,0.00024025,2]
[313833263,1707748272011,-500.0,0.00024025,2]
[313833264,1707748272021,-500.0,0.00024025,2]
[313833265,1707748272031,-500.0,0.00024025,2]
[313833266,1707748272041,-500.0,0.00024025,2]
[313833267,1707748272105,-662.95,0.00024025,2]
[313833268,1707748272115,-500.0,0.00024025,2]
[313833269,1707748272124,-500.0,0.00024025,2]
[313833270,1707748272133,-500.0,0.00024025,2]
[313833271,1707748272142,-500.0,0.00024025,2]
[313833272,1707748272151,-500.0,0.00024025,2]
[313833273,1707748272160,-500.0,0.00024025,2]
[313833274,1707748272169,-500.0,0.00024025,2]
[313833275,1707748272177,-500.0,0.00024025,2]
[313833276,1707748272186,-500.0,0.00024025,2]
[313833277,1707748272195,-500.0,0.00024025,2]
[313833278,1707748272204,-500.0,0.00024025,2]
[313833279,1707748272213,-500.0,0.00024025,2]
[313833280,1707748272222,-785.31,0.00024025,2]
[313833281,1707748272233,-500.0,0.00024025,2]
[313833282,1707748272243,-500.0,0.00024025,2]
[313833283,1707748272255,-500.0,0.00024025,2]
[313833284,1707748272266,-1057.6,0.00024025,2]
[313833285,1707748272275,-500.0,0.00024025,2]
[313833286,1707748272283,-500.0,0.00024025,2]
[313833287,1707748272293,-623.82,0.00024025,2]
[313833288,1707748272305,-500.0,0.00024025,2]
[313833289,1707748272314,-500.0,0.00024025,2]
[313833290,1707748272323,-500.0,0.00024025,2]
[313833291,1707748272332,-500.0,0.00024025,2]
[313833292,1707748272341,-681.61,0.00024025,2]
[313833293,1707748272350,-500.0,0.00024025,2]
[313833294,1707748272359,-500.0,0.00024025,2]
[313833295,1707748272369,-500.0,0.00024025,2]
[313833296,1707748272378,-1004.0,0.00024025,2]
[313833297,1707748272387,-500.0,0.00024025,2]
[313833298,1707748272396,-500.0,0.00024025,2]
[313833299,1707748272405,-500.0,0.00024025,2]
[313833300,1707748272414,-500.0,0.00024025,2]
[313833301,1707748272424,-159.69586422,0.00024025,2]
[313833302,1707748272433,-348.82841473,0.00024025,2]
[313833303,1707748272442,-500.0,0.00024025,2]
[313833304,1707748272452,-500.0,0.00024032,2]
[313833305,1707748272462,-561.12843787,0.00024032,2]
[313833306,1707748272473,-207.48195048,0.00024032,2]
[313833307,1707748272483,-224.35706654,0.00024032,2]
[313833308,1707748272492,-500.0,0.00024032,2]
[313833309,1707748272501,-500.0,0.00024032,2]
[313833310,1707748272513,-500.0,0.00024032,2]
[313833311,1707748272522,-3561.0,0.00024064,2]
[313833312,1707748272531,-500.0,0.00024092,2]
[313833313,1707748272540,-500.0,0.00024116,2]
[313833314,1707748272549,-500.0,0.00024116,2]
[313833315,1707748272558,-500.0,0.00024116,2]
[313833316,1707748272568,-500.0,0.00024116,2]
[313833317,1707748272577,-1366.1,0.00024116,2]
[313833318,1707748272587,-500.0,0.00024116,2]
[313833319,1707748272596,-500.0,0.00024116,2]
[313833320,1707748272605,-2110.37,0.00024132,2]
[313833321,1707748272614,-500.0,0.00024132,2]
[313833322,1707748272624,-6142.49,0.00024132,2]
[313833323,1707748272634,-500.0,0.00024132,2]
[313833324,1707748272644,-676.37,0.00024132,2]
[313833325,1707748272653,-1791.31,0.00024132,2]
[313833326,1707748272662,-564.38,0.00024132,2]
[313833327,1707748272672,-2125.32,0.00024132,2]
[313833328,1707748272681,-500.0,0.00024132,2]
[313833329,1707748272692,-746.12,0.00024132,2]
[313833330,1707748272701,-500.0,0.00024132,2]
[313833331,1707748272710,-6506.4,0.00024132,2]
[313833332,1707748272720,-746.22,0.00024132,2]
[313833333,1707748272729,-500.0,0.00024132,2]
[313833334,1707748272738,-500.0,0.00024132,2]
[313833335,1707748272747,-500.0,0.00024132,2]
[313833336,1707748272757,-500.0,0.00024132,2]
[313833337,1707748272767,-1926.94,0.00024132,2]
[313833338,1707748272776,-500.0,0.00024132,2]
[313833339,1707748272785,-1829.63,0.00024132,2]
[313833340,1707748272795,-500.0,0.00024132,2]
[313833341,1707748272804,-504.23,0.00024132,2]
[313833342,1707748272813,-2230.81,0.00024132,2]
[313833343,1707748272822,-500.0,0.00024132,2]
[313833344,1707748272831,-500.0,0.00024132,2]
[313833345,1707748272840,-5597.11,0.00024132,2]
[313833346,1707748272850,-2899.6,0.00024132,2]
[313833347,1707748272859,-500.0,0.00024132,2]
[313833348,1707748272868,-828.89,0.00024132,2]
[313833349,1707748272877,-5812.6876084,0.00024168,2]
[313833350,1707748272886,-318.53927586,0.00024214,2]
[313833351,1707748272895,-2611.65,0.00024214,2]
[313833352,1707748272905,-1871.51,0.00024214,2]
[313833353,1707748272914,-15228.44,0.00024214,2]
[313833354,1707748272923,-1123.04,0.00024214,2]
[313833355,1707748272932,-500.0,0.00024214,2]
[313833356,1707748272941,-669.38,0.00024214,2]
[313833357,1707748272951,-500.0,0.00024214,2]
[313833358,1707748272960,-7454.03,0.00024214,2]
[313833359,1707748272969,-656.99,0.00024214,2]
[313833360,1707748272979,-1132.61,0.00024214,2]
[313833361,1707748272988,-500.0,0.00024214,2]
[313833362,1707748272998,-607.87,0.00024214,2]
[313833363,1707748273007,-2975.67,0.00024214,2]
[313833364,1707748273017,-1380.57,0.00024214,2]
[313833365,1707748273026,-1785.04,0.00024214,2]
[313833366,1707748273035,-500.0,0.00024214,2]
[313833367,1707748273044,-1602.71,0.00024214,2]
[313833368,1707748273054,-1140.13,0.00024214,2]
[313833369,1707748273063,-2106.31,0.00024214,2]
[313833370,1707748273072,-1276.82,0.00024214,2]
[313833371,1707748273082,-11488.97,0.00024214,2]
[313833372,1707748273092,-779.37,0.00024214,2]
[313833373,1707748273101,-522.1,0.00024214,2]
[313833374,1707748273110,-500.0,0.00024214,2]
[313833375,1707748273120,-862.25,0.00024214,2]
[313833376,1707748273129,-954.69,0.00024214,2]
[313833377,1707748273139,-4038.41,0.00024214,2]
[313833378,1707748273149,-2125.47,0.00024214,2]
[313833379,1707748273158,-3098.18,0.00024214,2]
[313833380,1707748273168,-4848.26,0.00024214,2]
[313833381,1707748273177,-1169.49,0.00024214,2]
[313833382,1707748273187,-2525.28,0.00024214,2]
[313833383,1707748273196,-303.56073717,0.00024217,2]
[313833384,1707748273205,-500.0,0.00024217,2]
[313833385,1707748273214,-500.0,0.00024217,2]
[313833386,1707748273223,-500.0,0.00024217,2]
[313833387,1707748273232,-500.0,0.00024217,2]
[313833388,1707748273241,-500.0,0.00024217,2]
[313833389,1707748273251,-500.0,0.00024217,2]
[313833390,1707748273261,-500.0,0.00024217,2]
[313833391,1707748273270,-500.0,0.00024217,2]
[313833392,1707748273280,-660.1,0.00024217,2]
[313833393,1707748273289,-676.33,0.00024217,2]
[313833394,1707748273302,-500.0,0.00024217,2]
[313833395,1707748273311,-500.0,0.00024217,2]
[313833396,1707748273320,-500.0,0.00024217,2]
[313833397,1707748273329,-500.0,0.00024217,2]
[313833398,1707748273339,-500.0,0.00024217,2]
[313833399,1707748273348,-500.0,0.00024217,2]
[313833400,1707748273357,-500.0,0.00024217,2]
[313833401,1707748273366,-500.0,0.00024217,7]
[313833402,1707748273376,-500.0,0.00024217,2]
[313833403,1707748273386,-500.0,0.00024217,2]
[313833404,1707748273395,-500.0,0.00024217,2]
[313833405,1707748273405,-526.84,0.00024217,2]
[313833406,1707748273414,-476.36756539,0.00024217,2]
[313833407,1707748273423,-500.0,0.00024217,2]
[313833408,1707748273433,-500.0,0.00024217,2]
[313833409,1707748273442,-203.86126246,0.00024217,2]
[313833410,1707748273452,-529.5,0.00024217,2]
[313833411,1707748273461,-500.0,0.00024217,2]
[313833412,1707748273470,-652.95,0.00024217,2]
[313833413,1707748273480,-651.67,0.00024217,2]
[313833414,1707748273489,-567.71,0.00024217,2]
[313833415,1707748273498,-500.0,0.00024217,2]
[313833416,1707748273509,-784.11,0.00024217,2]
[313833417,1707748273518,-524.91,0.00024217,2]
[313833418,1707748273562,-500.0,0.00024217,2]
[313833419,1707748273572,-500.0,0.00024217,2]
[313833420,1707748273581,-500.0,0.00024217,2]
[313833421,1707748273590,-872.77,0.00024217,2]
[313833422,1707748273599,-639.25,0.00024217,2]
[313833423,1707748273608,-500.0,0.00024217,2]
[313833424,1707748273617,-500.0,0.00024217,2]
[313833425,1707748273626,-500.0,0.00024217,2]
[313833426,1707748273636,-500.0,0.00024217,2]
[313833427,1707748273645,-500.0,0.00024217,2]
[313833428,1707748273654,-500.0,0.00024217,2]
[313833429,1707748273663,-500.0,0.00024217,2]
[313833430,1707748273672,-1296.69,0.00024217,2]
[313833431,1707748273682,-500.0,0.00024217,2]
[313833432,1707748273691,-500.0,0.00024217,2]
[313833433,1707748273702,-500.0,0.00024217,2]
[313833434,1707748273712,-500.0,0.00024217,2]
[313833435,1707748273721,-500.0,0.00024217,2]
[313833436,1707748273730,-500.0,0.00024217,2]
[313833437,1707748273740,-500.0,0.00024217,2]
[313833438,1707748273751,-517.62,0.00024217,2]
[313833439,1707748273762,-4333.7,0.00024217,2]
[313833440,1707748273772,-1895.9,0.00024217,2]
[313833441,1707748273782,-923.15,0.00024217,2]
[313833442,1707748273791,-1121.1,0.00024217,2]
[313833443,1707748273801,-500.0,0.00024217,2]
[313833444,1707748273810,-500.0,0.00024217,2]
[313833445,1707748273820,-500.0,0.00024217,2]
[313833446,1707748273829,-500.0,0.00024217,2]
[313833447,1707748273838,-4100.88,0.00024217,2]
[313833448,1707748273849,-791.85,0.00024217,2]
[313833449,1707748273858,-500.0,0.00024217,2]
[313833450,1707748273867,-1394.8,0.00024217,2]
[313833451,1707748273877,-575.24,0.00024217,2]
[313833452,1707748273887,-561.26417027,0.00024217,2]
[313833453,1707748273897,-715.53,0.00024217,2]
[313833454,1707748273907,-1763.67,0.00024217,2]
[313833455,1707748273917,-637.77,0.00024217,2]
[313833456,1707748273927,-2032.84,0.00024217,2]
[313833457,1707748273937,-500.0,0.00024217,2]
[313833458,1707748273946,-686.28,0.00024217,2]
[313833459,1707748273956,-689.11,0.00024217,2]
[313833460,1707748273966,-4391.98,0.00024217,2]
[313833461,1707748273975,-1500.18,0.00024217,2]
[313833462,1707748273985,-637.5,0.00024217,2]
[313833463,1707748273994,-500.0,0.00024217,2]
[313833464,1707748274004,-1040.77,0.00024217,2]
[313833465,1707748274014,-500.0,0.00024217,2]
[313833466,1707748274024,-1065.07,0.00024217,2]
[313833467,1707748274033,-337.61308125,0.00024217,2]
[313833468,1707748274042,-500.0,0.00024217,2]
[313833469,1707748274052,-596.16,0.00024217,2]
[313833470,1707748274062,-500.0,0.00024217,2]
[313833471,1707748274072,-706.62,0.00024217,2]
[313833472,1707748274081,-500.0,0.00024217,2]
[313833473,1707748274091,-4062.09,0.00024217,2]
[313833474,1707748274100,-1058.56,0.00024217,2]
[313833475,1707748274109,-500.0,0.00024217,2]
[313833476,1707748274119,-213.1606886,0.00024217,2]
[313833477,1707748274129,-721.91,0.00024217,2]
[313833478,1707748274138,-3863.5,0.00024217,2]
[313833479,1707748274148,-500.0,0.00024217,2]
[313833480,1707748274159,-559.05,0.00024217,2]
[313833481,1707748274168,-500.0,0.00024217,2]
[313833482,1707748274178,-500.0,0.00024217,2]
[313833483,1707748274187,-500.0,0.00024217,2]
[313833484,1707748274196,-5323.17,0.00024217,2]
[313833485,1707748274206,-176.16520758,0.00024217,2]
[313833486,1707748274215,-500.0,0.00024217,2]
[313833487,1707748274225,-500.0,0.00024217,2]
[313833488,1707748274235,-1797.81,0.00024217,2]
[313833489,1707748274244,-500.0,0.00024217,2]
[313833490,1707748274254,-500.0,0.00024217,2]
[313833491,1707748274264,-1838.78,0.00024217,2]
[313833492,1707748274273,-683.21,0.00024217,2]
[313833493,1707748274282,-500.0,0.00024217,2]
[313833494,1707748274291,-508.34,0.00024217,2]
[313833495,1707748274302,-500.0,0.00024217,2]
[313833496,1707748274314,-500.0,0.00024217,2]
[313833497,1707748274323,-945.99,0.00024217,2]
[313833498,1707748274332,-500.0,0.00024217,2]
[313833499,1707748274342,-874.97,0.00024217,2]
[313833500,1707748274353,-500.0,0.00024217,2]
[313833501,1707748274362,-500.0,0.00024217,2]
[313833502,1707748274371,-500.0,0.00024217,2]
[313833503,1707748274382,-2272.98,0.00024217,2]
[313833504,1707748274391,-500.0,0.00024217,2]
[313833505,1707748274401,-500.0,0.00024217,2]
[313833506,1707748274410,-1286.15,0.00024217,2]
[313833507,1707748274419,-500.0,0.00024217,2]
[313833508,1707748274429,-502.26,0.00024217,2]
[313833509,1707748274438,-1140.72,0.00024217,2]
[313833510,1707748274448,-500.0,0.00024218,2]
[313833511,1707748274457,-639.88,0.00024218,2]
[313833512,1707748274467,-500.0,0.00024218,2]
[313833513,1707748274476,-317.68837789,0.00024218,2]
[313833514,1707748274486,-500.0,0.00024218,2]
[313833515,1707748274495,-500.0,0.00024218,2]
[313833516,1707748274505,-500.0,0.00024218,2]
[313833517,1707748274514,-500.0,0.00024218,2]
[313833518,1707748274524,-500.0,0.00024218,2]
[313833519,1707748274533,-500.0,0.00024218,2]
[313833520,1707748274543,-153.24305176,0.00024218,2]
[313833521,1707748274552,-471.37553848,0.00024218,2]
[313833522,1707748274562,-500.0,0.00024218,2]
[313833523,1707748274571,-215.54054916,0.00024218,2]
[313833524,1707748274581,-500.0,0.00024218,2]
[313833525,1707748274590,-416.92564687,0.00024218,2]
[313833526,1707748274599,-500.0,0.00024218,2]
[313833527,1707748274608,-524.07,0.00024218,2]
[313833528,1707748274618,-629.16450805,0.00024218,2]
[313833529,1707748274627,-546.68089512,0.00024218,2]
[313833530,1707748274637,-500.0,0.00024218,2]
[313833531,1707748274646,-500.0,0.00024218,2]
[313833532,1707748274655,-500.0,0.00024218,2]
[313833533,1707748274664,-588.20510168,0.00024218,2]
[313833534,1707748274673,-503.46,0.00024218,2]
[313833535,1707748274682,-618.8150778,0.00024218,2]
[313833536,1707748274691,-500.0,0.00024218,2]
[313833537,1707748274701,-500.0,0.00024218,2]
[313833538,1707748274710,-506.3992233,0.00024218,2]
[313833539,1707748274720,-223.14160924,0.00024218,2]
[313833540,1707748274729,-500.0,0.00024218,2]
[313833541,1707748274740,-250.0,0.00024218,2]
[313833542,1707748274750,-500.0,0.00024218,2]
[313833543,1707748274760,-500.0,0.00024218,2]
[313833544,1707748274769,-859.17,0.00024218,2]
[313833545,1707748274778,-8642.09,0.00024218,2]
[313833546,1707748274787,-500.0,0.00024218,2]
[313833547,1707748274797,-500.0,0.00024218,2]
[313833548,1707748274806,-500.0,0.00024218,2]
[313833549,1707748274815,-500.0,0.00024218,2]
[313833550,1707748274825,-907.74,0.00024218,2]
[313833551,1707748274834,-659.8,0.00024218,2]
[313833552,1707748274843,-6204.93,0.00024218,2]
[313833553,1707748274853,-500.0,0.00024218,2]
[313833554,1707748274863,-500.0,0.00024218,2]
[313833555,1707748274872,-1134.83,0.00024218,2]
[313833556,1707748274882,-500.0,0.00024218,2]
[313833557,1707748274892,-1147.71,0.00024218,2]
[313833558,1707748274901,-500.0,0.00024218,2]
[313833559,1707748274910,-500.0,0.00024218,2]
[313833560,1707748274920,-531.88085204,0.00024218,2]
[313833561,1707748274930,-2142.38,0.00024218,2]
[313833562,1707748274940,-1578.9,0.00024218,2]
[313833563,1707748274949,-500.0,0.00024218,2]
[313833564,1707748274958,-500.0,0.00024218,2]
[313833565,1707748274968,-500.0,0.00024218,2]
[313833566,1707748274978,-628.61,0.00024218,2]
[313833567,1707748274991,-1527.65,0.00024218,2]
[313833568,1707748275001,-423.1137612,0.00024218,2]
[313833569,1707748275012,-1715.49,0.00024218,2]
[313833570,1707748275022,-500.0,0.00024218,2]
[313833571,1707748275032,-1537.51,0.00024218,2]
[313833572,1707748275041,-500.0,0.00024218,2]
[313833573,1707748275050,-500.0,0.00024218,2]
[313833574,1707748275059,-1757.6,0.00024218,2]
[313833575,1707748275069,-354.90528205,0.00024218,2]
[313833576,1707748275078,-2089.11,0.00024218,2]
[313833577,1707748275087,-1017.68,0.00024218,2]
[313833578,1707748275096,-500.0,0.00024218,2]
[313833579,1707748275105,-1161.37,0.00024218,2]
[313833580,1707748275114,-590.03,0.00024218,2]
[313833581,1707748275124,-627.21569606,0.00024218,2]
[313833582,1707748275134,-10286.15,0.00024218,2]
[313833583,1707748275143,-500.0,0.00024218,2]
[313833584,1707748275153,-500.0,0.00024218,2]
[313833585,1707748275163,-500.0,0.00024218,2]
[313833586,1707748275171,-500.0,0.00024218,2]
[313833587,1707748275181,-1897.21,0.00024218,2]
[313833588,1707748275191,-500.0,0.00024218,2]
[313833589,1707748275201,-935.54,0.00024218,2]
[313833590,1707748275210,-500.0,0.00024218,2]
[313833591,1707748275219,-7934.79,0.00024218,2]
[313833592,1707748275229,-500.0,0.00024218,2]
[313833593,1707748275241,-500.0,0.00024218,2]
[313833594,1707748275251,-500.0,0.00024218,2]
[313833595,1707748275261,-500.0,0.00024218,2]
[313833596,1707748275271,-500.0,0.00024218,2]
[313833597,1707748275281,-500.0,0.00024218,2]
[313833598,1707748275291,-2190.55,0.00024218,2]
[313833599,1707748275301,-500.0,0.00024218,2]
[313833600,1707748275313,-1376.25,0.00024218,2]
[313833601,1707748275323,-500.0,0.00024218,2]
[313833602,1707748275332,-6405.5,0.00024218,2]
[313833603,1707748275342,-500.0,0.00024218,2]
[313833604,1707748275353,-500.0,0.00024218,2]
[313833605,1707748275363,-500.0,0.00024218,2]
[313833606,1707748275373,-4161.56,0.00024218,2]
[313833607,1707748275384,-692.19,0.00024218,2]
[313833608,1707748275394,-500.0,0.00024218,2]
[313833609,1707748275403,-562.21,0.00024218,2]
[313833610,1707748275412,-625.83344927,0.00024218,2]
[313833611,1707748275422,-500.0,0.00024274,2]
[313833612,1707748275431,-500.0,0.00024299,2]
[313833613,1707748275441,-345.5109141,0.00024299,2]
[313833614,1707748275451,-312.02,0.00024299,2]
[313833615,1707748275460,-500.0,0.00024299,2]
[313833616,1707748275469,-500.0,0.00024299,2]
[313833617,1707748275478,-500.0,0.00024299,2]
[313833618,1707748275488,-1262.54,0.00024299,2]
[313833619,1707748275497,-1207.47,0.00024299,2]
[313833620,1707748275507,-500.0,0.00024299,2]
[313833621,1707748275518,-500.0,0.00024299,2]
[313833622,1707748275527,-500.0,0.00024299,2]
[313833623,1707748275538,-500.0,0.00024299,2]
[313833624,1707748275547,-581.28,0.00024299,2]
[313833625,1707748275557,-620.8392487,0.00024299,2]
[313833626,1707748275566,-373.82501611,0.00024299,2]
[313833627,1707748275575,-500.0,0.00024299,2]
[313833628,1707748275584,-500.0,0.00024299,2]
[313833629,1707748275594,-500.0,0.00024299,2]
[313833630,1707748275603,-500.0,0.00024299,2]
[313833631,1707748275612,-500.0,0.00024299,2]
[313833632,1707748275621,-500.0,0.00024299,2]
[313833633,1707748275631,-500.0,0.00024299,2]
[313833634,1707748275640,-500.0,0.00024299,2]
[313833635,1707748275650,-500.0,0.00024299,2]
[313833636,1707748275661,-500.0,0.00024299,2]
[313833637,1707748275670,-500.0,0.00024299,2]
[313833638,1707748275679,-500.0,0.00024299,2]
[313833639,1707748275688,-500.0,0.00024299,2]
[313833640,1707748275698,-429.68,0.00024299,2]
[313833641,1707748275708,-662.95,0.00024299,2]
[313833642,1707748275717,-500.0,0.00024299,2]
[313833643,1707748275726,-500.0,0.00024299,2]
[313833644,1707748275737,-500.0,0.00024299,2]
[313833645,1707748275747,-500.0,0.00024299,2]
[313833646,1707748275757,-500.0,0.00024299,2]
[313833647,1707748275766,-500.0,0.00024299,2]
[313833648,1707748275775,-500.0,0.00024299,2]
[313833649,1707748275784,-500.0,0.00024299,2]
[313833650,1707748275793,-500.0,0.00024299,2]
[313833651,1707748275803,-500.0,0.00024299,2]
[313833652,1707748275812,-500.0,0.00024299,2]
[313833653,1707748275821,-500.0,0.00024299,2]
[313833654,1707748275830,-785.31,0.00024299,2]
[313833655,1707748275839,-500.0,0.00024299,2]
[313833656,1707748275849,-500.0,0.00024299,2]
[313833657,1707748275859,-334.06766243,0.00024299,2]
[313833658,1707748275868,-1057.6,0.00024299,2]
[313833659,1707748275878,-500.0,0.00024299,2]
[313833660,1707748275887,-500.0,0.00024299,2]
[313833661,1707748275897,-623.82,0.00024299,2]
[313833662,1707748275906,-500.0,0.00024299,2]
[313833663,1707748275915,-500.0,0.00024299,2]
[313833664,1707748275924,-223.74283583,0.00024299,2]
[313833665,1707748275934,-500.0,0.00024299,2]
[313833666,1707748275944,-681.61,0.00024299,2]
[313833667,1707748275954,-500.0,0.00024299,2]
[313833668,1707748275965,-500.0,0.00024299,2]
[313833669,1707748275974,-500.0,0.00024299,2]
[313833670,1707748275984,-1004.0,0.00024299,2]
[313833671,1707748275993,-500.0,0.00024299,2]
[313833672,1707748276003,-500.0,0.00024299,2]
[313833673,1707748276013,-500.0,0.00024299,2]
[313833674,1707748276024,-500.0,0.00024299,2]
[313833675,1707748276034,-500.0,0.00024299,2]
[313833676,1707748276044,-151.0,0.00024305,2]
[313833677,1707748276053,-500.0,0.00024305,2]
[313833678,1707748276071,-170.12832425,0.00024306,2]
[313833679,1707748276084,-385.11333937,0.00024306,2]
[313833680,1707748276095,-500.0,0.00024306,2]
[313833681,1707748276105,-500.0,0.00024306,2]
[313833682,1707748276115,-6616.41,0.00024384,2]
[313833683,1707748276126,-1238.62,0.00024384,2]
[313833684,1707748276136,-500.0,0.0002439,2]
[313833685,1707748276146,-500.0,0.0002439,2]
[313833686,1707748276157,-500.0,0.0002439,2]
[313833687,1707748276168,-500.0,0.0002439,2]
[313833688,1707748276178,-1366.1,0.0002439,2]
[313833689,1707748276188,-500.0,0.0002439,2]
[313833690,1707748276198,-500.0,0.0002439,2]
[313833691,1707748276208,-300.0,0.00024395,2]
[313833692,1707748276219,-2110.37,0.00024406,2]
[313833693,1707748276229,-500.0,0.00024406,2]
[313833694,1707748276239,-6142.49,0.00024406,2]
[313833695,1707748276250,-500.0,0.00024406,2]
[313833696,1707748276261,-676.37,0.00024406,2]
[313833697,1707748276271,-1791.31,0.00024406,2]
[313833698,1707748276282,-564.38,0.00024406,2]
[313833699,1707748276293,-2125.32,0.00024406,2]
[313833700,1707748276306,-500.0,0.00024406,2]
[313833701,1707748276318,-746.12,0.00024406,2]
[313833702,1707748276329,-500.0,0.00024406,2]
[313833703,1707748276339,-6506.4,0.00024406,2]
[313833704,1707748276349,-746.22,0.00024406,2]
[313833705,1707748276359,-500.0,0.00024406,2]
[313833706,1707748276370,-500.0,0.00024406,2]